Cogmind - Beta 14 @@@ ROGUE MODE // 2024.11.21 @ 18:25:18 Player: N.W.L Result: Destroyed by as-89749 with Assembled Blade Performance ------------- Evolutions (0) 0 Regions Visited (4) 800 Robots Destroyed (42) 210 Value Destroyed (586) 586 Prototype IDs (28) 560 Alien Tech Used (0) 0 Bonus (307) 307 TOTAL SCORE: 2463 Bonus ------- Follower Combat Kills 7 Aligned with FarCom 300 Cogmind --------- Core Integrity 0/250 Matter 56/300 Energy 76/100 System Corruption 1% Temperature Cool (0) Movement Treading (240) Ox1 Location -9/Mines Parts ------- > --- POWER (1) -------- (None) > --- PROPULSION (2) --- Light Treads Light Treads > --- UTILITY (2) ------ High-capacity Storage Unit Splice Drone Bay (6/6) > --- WEAPON (2) ------- Mining Laser > --- INVENTORY (20) --- Reinforced Fission Core Light Treads Experimental Heat Sink Superbattery (1500) Small Matter Pod (0) Small Matter Pod (0) Seismic Detector Army-in-a-Box (30/30) AWS/Autocannon Rocket Launcher Peak State ------------ > --- POWER ------------ Reinforced Fission Core > --- PROPULSION ------- Light Treads Improved Treads > --- UTILITY ---------- Superbattery Hardened Light Armor Plating > --- WEAPON ----------- Improved Assault Rifle Improved Assault Rifle > --- INVENTORY -------- Light Treads Light Treads Light Treads Experimental Heat Sink Small Matter Pod [Rating: 28] Favorites ----------- Power Light Ion Engine Engine Light Ion Engine Power Core Reinforced Fission Core Propulsion Improved Treads Treads Improved Treads Utility High-capacity Storage Unit Device Shield Generator Storage High-capacity Storage Unit Protection Hardened Light Armor Plating Weapon Improved Assault Rifle Energy Gun Small Laser Ballistic Gun Improved Assault Rifle Launcher Grenade Launcher Special Weapon Mining Laser Build | -11 -10 -10 -10 -9 ------- Run | Yrd Mat Min Exi Min Slots Evolved . | . . . . . Power . | . . . . . Propulsion . | . . . . . Utility . | . . . . . Weapon . | . . . . . Parts Attached 50 | 8 11 4 24 3 Power 5 | 1 1 . 3 . Engine 4 | 1 1 . 2 . Core 1 | . . . 1 . Reactor . | . . . . . Propulsion 9 | 2 2 . 4 1 Treads 9 | 2 2 . 4 1 Leg . | . . . . . Wheel . | . . . . . Hover . | . . . . . Flight . | . . . . . Utility 18 | 2 4 2 9 1 Device 7 | 1 1 1 3 1 Storage 5 | 1 2 . 2 . Processor . | . . . . . Hackware . | . . . . . Protection 6 | . 1 1 4 . Artifact . | . . . . . Weapon 18 | 3 4 2 8 1 Energy Gun 2 | 2 . . . . Energy Cannon . | . . . . . Ballistic Gun 10 | 1 3 1 5 . Ballistic Cannon . | . . . . . Launcher 3 | . . 1 1 1 Special Weapon 3 | . 1 . 2 . Impact Weapon . | . . . . . Slashing Weapon . | . . . . . Piercing Weapon . | . . . . . Special Melee Weapon . | . . . . . Unidentified Prototypes 3 | . 1 1 1 . Parts Lost 18 | . . . 16 2 Power 2 | . . . 2 . Propulsion 5 | . . . 4 1 Utility 6 | . . . 6 . Weapon 5 | . . . 4 1 Highest Loss Streak 8 | . . . 8 1 To Critical Strikes 6 | . . . 6 . Average Slot Usage (%) 95 | . 99 100 93 71 Engine 10 | . 14 14 9 . Core 1 | . . . 2 . Treads 27 | . 28 28 27 28 Device 5 | . 7 . 4 4 Storage 12 | . 14 14 11 14 Protection 9 | . 6 13 10 . Ballistic Gun 22 | . 26 25 21 . Launcher 1 | . . 2 1 9 Special Weapon 2 | . . . 2 14 Peak Build Rating 28 | 7 17 22 28 22 Average Rating 15 | 6 14 16 16 18 On Entrance 11 | . 7 17 17 16 Naked Turns . | . . . . . Heaviest Build 72 | 11 54 57 72 49 Greatest Support 46 | 40 46 46 46 40 Greatest Overweight (x) 1 | . 1 1 1 1 Average Overweight (x) . | . . 1 . 1 Largest Inventory Capacity 20 | 8 20 20 20 20 Average Capacity 16 | 7 17 20 17 20 Most Carried 20 | 3 20 20 20 19 Average Carried 12 | 2 14 19 10 18 Final Capacity 20 | 8 20 20 20 20 Final Carried 20 | 3 19 20 19 17 Class Distribution -------------------- 100% | Mutant Dominant Class ---------------- Mutant | -10/Materials Mutant | -10/Mines Mutant | -10/Exiles Mutant | -9/Mines Resources | -11 -10 -10 -10 -9 ----------- Run | Yrd Mat Min Exi Min Matter Collected 1201 | 324 216 83 519 59 Remotely . | . . . . . Salvage Created 1128 | 324 501 88 192 23 Parts 92 | 32 36 9 9 6 Haulers Intercepted 2 | . 2 . . . Recyclers Shooed 2 | 1 . . . 1 Parts Field Recycled . | . . . . . Retrieved Matter . | . . . . . Parts Self-Destructed . | . . . . . Prevented . | . . . . . Kills | -11 -10 -10 -10 -9 ------- Run | Yrd Mat Min Exi Min Combat Hostiles Destroyed 21 | . 8 5 4 4 Melee 1 | . . . 1 . Guns 10 | . 8 2 . . AOE 10 | . . 3 3 4 Classes Destroyed 10 | 3 5 . 2 . Worker 2 | 2 . . . . Tunneler 8 | 8 . . . . Hauler 2 | . 2 . . . Recycler 2 | 1 1 . . . Operator 1 | . 1 . . . Watcher 3 | . 3 . . . Swarmer 10 | . 3 3 . 4 Grunt 7 | . 5 2 . . Zionite 6 | . . . 6 . Assembled 3 | . . . 3 . Best Kill Streak 4 | 3 3 3 3 4 Combat Bots Only 4 | . 3 3 3 4 Max Kills in Single Turn 2 | 1 2 2 1 2 Gunslinging 1 | . 1 . . . Exploded 2 | . . 2 1 2 Melee 1 | . . . 1 . Uniques/NPCs Destroyed 1 | . . . 1 . 8R-AWN (-10/Exiles) Combat | -11 -10 -10 -10 -9 -------- Run | Yrd Mat Min Exi Min Hostile Shots Fired 244 | . 27 5 182 30 Missed 67 | . 10 1 45 11 Damage Taken 2800 | . 258 43 2197 302 Core 257 | . 59 . 140 58 Absorbed by Shields 397 | . 38 . 359 . Core Remaining (%) 100 | 100 . . . . Volleys Fired 232 | 44 32 6 144 6 Largest 2 | 2 2 2 2 1 Hottest 100 | 60 100 46 100 100 Shots Fired 369 | 86 62 9 206 6 Gun 308 | 86 60 6 156 . Cannon . | . . . . . Launcher 13 | . . 3 6 4 Special 48 | . 2 . 44 2 Kinetic 266 | 44 60 6 156 . Thermal 90 | 42 2 . 44 2 Explosive 13 | . . 3 6 4 Electromagnetic . | . . . . . Robot Hit Streak 17 | 4 10 3 17 . Robot Miss Streak 4 | 4 2 1 3 1 Penetration Max . | . . . . . Secondary Targets 2 | . 2 . . . Max Gunslinging Chain 1 | . 1 . . . Shots Hit Robots 206 | 44 40 3 119 . Core Hits 76 | 15 18 6 31 6 Critical Kills . | . . . . . Critical Parts Destroyed . | . . . . . Critical Strikes . | . . . . . Melee Attacks . | . . . . . Impact . | . . . . . Slashing . | . . . . . Piercing . | . . . . . Sneak Attacks . | . . . . . Combat Hostiles . | . . . . . Follow-up Attacks . | . . . . . Damage Inflicted 3418 | 420 645 260 1940 153 Guns 2884 | 420 636 51 1777 . Cannons . | . . . . . Explosions 517 | . . 209 163 145 Melee . | . . . . . Ramming 17 | . 9 . . 8 Kinetic 2644 | 180 636 51 1777 . Thermal 240 | 240 . . . . Explosive 517 | . . 209 163 145 Electromagnetic . | . . . . . Impact . | . . . . . Slashing . | . . . . . Piercing . | . . . . . Highest Corruption 1 | . . . 1 1 Average Corruption 1 | . . . 1 1 Corruption Purged . | . . . . . Corruption Blocked . | . . . . . Effects 6 | . . . 2 4 Message Errors 3 | . . . 1 2 Matter Fused 1 | . . . . 1 Heat Flow Errors 1 | . . . . 1 Data Loss (minor) 1 | . . . 1 . Overload Shots . | . . . . . Overflow Damage 26 | . . 12 . 14 Projectiles . | . . . . . Explosions 26 | . . 12 . 14 Melee . | . . . . . Knockbacks . | . . . . . Impact . | . . . . . Kinetic . | . . . . . Secondary . | . . . . . Self-Inflicted Damage 9 | . . . . 9 Shots 2 | . . . . 2 Rammed 7 | . 3 . . 4 Targets Rammed 8 | . 3 . 1 4 Kicked . | . . . . . Crushed 1 | . . . 1 . Highest Temperature 258 | 60 40 15 258 241 Average Temperature 47 | 22 13 13 62 131 Received Heat Transfer 64 | . 49 15 . . Siege Activations . | . . . . . Robots Corrupted . | . . . . . Combat Hostiles . | . . . . . Parts Fried . | . . . . . Impact Corruptions . | . . . . . Robots Melted . | . . . . . Combat Hostiles . | . . . . . Parts Melted . | . . . . . Heat Transferred 550 | 550 . . . . Parts Sabotaged . | . . . . . Parts Stolen . | . . . . . Parts Stripped . | . . . . . Power Chain Reactions . | . . . . . Alert | -11 -10 -10 -10 -9 ------- Run | Yrd Mat Min Exi Min Peak Influence 178 | 55 178 136 . 153 Initial 35 | . 35 4 . . Average 57 | 25 53 64 . 112 Maximum Alert Level . | . . . . . Low Security (%) 100 | 100 100 100 . 100 Level 1 . | . . . . . Level 2 . | . . . . . Level 3 . | . . . . . Level 4 . | . . . . . Level 5 . | . . . . . High Security . | . . . . . Max Security . | . . . . . Squads Dispatched 2 | . 2 . . . Investigation 1 | . 1 . . . Extermination . | . . . . . Reinforcement 1 | . 1 . . . Assault . | . . . . . Garrison . | . . . . . Intercept . | . . . . . Searches Triggered . | . . . . . Construction Impeded . | . . . . . Haulers Reinforced . | . . . . . Active Scanning Responses . | . . . . . Cargo Convoy Interrupts . | . . . . . Stealth | -11 -10 -10 -10 -9 --------- Run | Yrd Mat Min Exi Min Distress Signals . | . . . . . Communications Jammed . | . . . . . Distress Signals . | . . . . . Times Spotted 58 | . 14 3 25 16 Peak Tracking Total 10 | . 3 2 10 6 Tactical Retreats 14 | . 1 . 12 1 Traps | -11 -10 -10 -10 -9 ------- Run | Yrd Mat Min Exi Min Traps Triggered 3 | . 3 . . . Indirectly . | . . . . . Trap Hack Attempts . | . . . . . Triggered . | . . . . . Disarmed . | . . . . . Reprogrammed . | . . . . . Reused . | . . . . . Traps Extracted . | . . . . . Installed . | . . . . . Triggered 1 | . . 1 . . Machines | -11 -10 -10 -10 -9 ---------- Run | Yrd Mat Min Exi Min Machines Disabled 9 | . . . 8 1 Max in Single Turn 1 | . . . 1 1 Machines Repaired . | . . . . . Machines Dismantled . | . . . . . Machines Sabotaged . | . . . . . Overloaded Fab Kills . | . . . . . Hacking | -11 -10 -10 -10 -9 --------- Run | Yrd Mat Min Exi Min Machines Accessed 11 | . 8 1 2 . Terminals 7 | . 7 . . . Fabricators . | . . . . . Repair Stations . | . . . . . Recycling Units 1 | . 1 . . . Scanalyzers . | . . . . . Garrison Access . | . . . . . Total Hacks 33 | . 30 1 2 . Successful 18 | . 15 1 2 . Failed 15 | . 15 . . . Catastrophic 1 | . 1 . . . Database Lockouts . | . . . . . Manual 26 | . 25 . 1 . Terminals 26 | . 26 . . . Fabricators . | . . . . . Repair Stations . | . . . . . Recycling Units 4 | . 4 . . . Scanalyzers . | . . . . . Garrison Access . | . . . . . Terminal Hacks 9 | . 6 1 2 . Record 1 | . . . 1 . Part Schematic 1 | . 1 . . . Robot Analysis 3 | . 3 . . . Prototype ID Bank 1 | . 1 . . . Open Door 1 | . . 1 . . Locate Traps 1 | . 1 . . . Derelict Proto ID Bank 1 | . . . 1 . Fabricator Hacks . | . . . . . Repair Station Hacks . | . . . . . Recycling Unit Hacks 1 | . 1 . . . Retrieve Components 1 | . 1 . . . Scanalyzer . | . . . . . Garrison Access Hacks . | . . . . . Unauthorized Hacks 8 | . 8 . . . Terminals 7 | . 7 . . . Botnet 1 | . 1 . . . Operators 1 | . 1 . . . Skim 5 | . 5 . . . Fabricators . | . . . . . Repair Stations . | . . . . . Recycling Units 1 | . 1 . . . Tunnel 1 | . 1 . . . Scanalyzers . | . . . . . Garrison Access . | . . . . . Data Cores Recovered . | . . . . . Used . | . . . . . Hacking Detections 7 | . 7 . . . Full Trace Events . | . . . . . Feedback Events . | . . . . . Feedback Blocked . | . . . . . Robot Schematics Acquired . | . . . . . Robots Built . | . . . . . Authchips . | . . . . . Time . | . . . . . Total Robot Build Rating . | . . . . . Part Schematics Acquired 1 | . 1 . . . Parts Built . | . . . . . Authchips . | . . . . . Time . | . . . . . Total Part Build Rating . | . . . . . Parts Repaired . | . . . . . Time . | . . . . . Parts Recycled . | . . . . . Recycled Matter . | . . . . . Retrieved Matter . | . . . . . Retrieved Components 2 | . 2 . . . Parts Scanalyzed . | . . . . . Part Schematics Acquired . | . . . . . Parts Damaged . | . . . . . Bothacking | -11 -10 -10 -10 -9 ------------ Run | Yrd Mat Min Exi Min Used RIF Installer . | . . . . . Robots Hacked . | . . . . . Non-combat . | . . . . . Combat . | . . . . . Robot Hacks Applied . | . . . . . Relay Couplers Released . | . . . . . Fabnet Peak Effective % . | . . . . . Robots Rewired . | . . . . . Allies Hacked . | . . . . . Hacks Repelled . | . . . . . Allies | -11 -10 -10 -10 -9 -------- Run | Yrd Mat Min Exi Min Total Allies 2 | . . . . 2 Largest Group 1 | . . . . 1 Highest-Rated Group 5 | . . . . 5 Highest-Rated Ally 5 | . . . . 5 Total Orders 2 | . . . . 2 RETURN 2 | . . . . 2 Ally Attacks 11 | . . . . 11 Total Damage 31 | . . . . 31 Kills 1 | . . . . 1 Allies Corrupted . | . . . . . Allies Melted . | . . . . . Intel | -11 -10 -10 -10 -9 ------- Run | Yrd Mat Min Exi Min Robot Analysis Total 3 | . 3 . . . Derelict Logs Recovered 1 | . . 1 . . Drone Launches 7 | . . . . 7 Drone Recoveries 7 | . . . . 7 Exploration | -11 -10 -10 -10 -9 ------------- Run | Yrd Mat Min Exi Min Turns Passed 6732 | 361 1996 592 3494 289 Spaces Moved 2626 | 144 889 232 1258 103 Core 4 | 4 . . . . Treads 2622 | 140 889 232 1258 103 Legs . | . . . . . Wheels . | . . . . . Hover . | . . . . . Flight . | . . . . . Fastest Speed 50 | 50 160 240 160 240 Average Speed 212 | 156 197 240 222 240 Slowest Speed 240 | 160 240 240 240 240 Overloaded Moves . | . . . . . Propulsion Burnouts . | . . . . . Robots Hopped . | . . . . . Cave-ins Triggered . | . . . . . Exploration Rate (%) 51 | 9 96 39 83 30 Regions Visited 4 Branch Regions 3 Pre-discovered Areas 3 | . 2 . 1 . Known Exits Taken 1 | . . . 1 . Unknown Exits Taken 3 | 1 1 1 . . Scrap Searched 1 | . . 1 . . Spaces Dug 16 | . 2 . 9 5 Terrain Destroyed 80 | . 2 21 37 20 Melee . | . . . . . Projectile 20 | . 2 . 18 . AOE 60 | . . 21 19 20 Terrain Rammed . | . . . . . Walls Destroyed . | . . . . . Machines Disabled . | . . . . . Actions | -11 -10 -10 -10 -9 --------- Run | Yrd Mat Min Exi Min Total 3325 | 199 1062 258 1675 131 Wait 307 | . 101 13 179 14 Move 2622 | 143 888 231 1257 103 Hop . | . . . . . Pick Up 56 | 3 18 2 32 1 Fast Attach 20 | 7 3 1 9 . Attach 15 | 1 1 . 10 3 Detach 4 | 1 1 . 2 . Swap 15 | . 7 3 5 . Drop 46 | . 8 2 36 . Fire 232 | 44 32 6 144 6 Melee . | . . . . . Ram . | . . . . . Kick . | . . . . . Crush 8 | . 3 . 1 4 Escape Stasis . | . . . . . Rewire . | . . . . . Trap . | . . . . . Miscellaneous . | . . . . . Route ------- -11/Scrapyard -10/Materials (discovered 5 exits: *Mat x3 / *Min / Sub) -10/Mines -10/Exiles (discovered 2 exits: *Min x2) -9/Mines History --------- Turn | Location | Event 5 | -11/Scrapyard | Discovered new exit (range 14) 362 | -11/Scrapyard | Entered Materials 363 | -10/Materials | Build established: Mutant 421 | -10/Materials | Discovered new exit (range 15) 741 | -10/Materials | Discovered new exit (range 5) 1994 | -10/Materials | Discovered new exit (range 16) 2094 | -10/Materials | Learned 4 Subcaves zone layouts 2134 | -10/Materials | Learned Storage trap positions 2164 | -10/Materials | Identified exit to Materials 2182 | -10/Materials | Learned Storage emergency access door positions 2188 | -10/Materials | Learned location of Mines (-10) 2205 | -10/Materials | Identified exit to Subcaves 2358 | -10/Materials | Entered Mines 2402 | -10/Mines | Found DCF Scrap (16 items) 2833 | -10/Mines | Found the Drone Emporium 2852 | -10/Mines | Found Prototype Device 2852 | -10/Mines | Identified Splice Drone Bay 2940 | -10/Mines | Deemed a non-threat by the Exiles lab entrance 2940 | -10/Mines | Discovered new exit (range 5) 2950 | -10/Mines | Entered Exiles 2951 | -10/Exiles | Identified exit to Mines 3010 | -10/Exiles | Met 8R-AWN 3054 | -10/Exiles | Met EX-HEX 3128 | -10/Exiles | Met EX-BIN 3157 | -10/Exiles | Aligned with FarCom system 3159 | -10/Exiles | Given EX-Vault access code 3214 | -10/Exiles | Opened EX-Vault 3232 | -10/Exiles | Found Superbattery 3264 | -10/Exiles | Found AWS/Autocannon 3311 | -10/Exiles | Warned to stay clear of 0b10 Research branches 3383 | -10/Exiles | Met EX-DEC 3402 | -10/Exiles | Learned location of Zion (-6) 4194 | -10/Exiles | Found Army-in-a-Box 5015 | -10/Exiles | Attacked by the Exiles 5138 | -10/Exiles | Core integrity fell below 50% 5259 | -10/Exiles | Lost 8 parts (1p2n3u2w) 5325 | -10/Exiles | Destroyed 8R-AWN 6444 | -10/Exiles | Stole three prototypes: Superbattery, Army-in-a-Box, AWS/Autocannon 6444 | -10/Exiles | Entered Mines 6451 | -9/Mines | Core integrity fell below 20% 6520 | -9/Mines | Received a Rocket Launcher from a helpful Derelict 6718 | -9/Mines | Excavation squad dispatched 6718 | -9/Mines | A large section of the Mines collapsed 6733 | -9/Mines | Destroyed by as-89749 with Assembled Blade Last Messages --------------- 06669_ R-06 Scavenger collects Flight Unit. 06670_ U-05 Engineer lays Concrete. 06671_ Acquired 16 matter. 06672_ U-05 Engineer lays Concrete. 06673_ R-06 Scavenger collects Flight Unit. 06674_ U-05 Engineer lays Concrete. 06676_ Acquired 7 matter. 06677_ U-05 Engineer lays Concrete. 06677_ R-06 Scavenger collects Flight Unit. 06678_ U-05 Engineer lays Concrete. 06680_ U-05 Engineer builds a Wall. 06713_ Acquired 10 matter. 06718_ Flight Unit crushed. 06718_ Lgt. Ion Engine crushed. 06718_ ALERT: Suspicious cave-in, suspected derelict activity in mines. Dispatching escorted excavation squad. 06718_ Slammed into as-89749. 06730_ T-07 Excavator is excavating. 06731_ Lgt. Treads destroyed. 06733_ Slammed into as-89749. Map ----- +----------------------------------------------------+ | ?????????????????????????????????????????? | | ?????????????????????????????????????????? | | ?????????????????????????????????????????? | | ?????????????????????????????????????????? | | ?????????????????????????????????????????? | | ?????????????????????????????????????????? | | ?????????????????????????????????????????? | | ?????????????????????????????????????????? | | ?????????????????????????????????????????? | | ?????????????????????????????????????????? | | ?????????????????????????????????????????? | | ?????????????????????????????????????????? | | ?????????????????????????????????????????? | | ?????????????????????????????????????????? | | ????????????????????????????????????##???? | | ??????????????????????????????????? ????? | | ?????????????????##??###??????????? #???? | | ?????????????????? ## ###???????# #?## | | ???????????????????? ##?????# ## | | ?????????????????????? #????# | | ???????????????????????# #??## ?? | | ???????#????????????????# #### #????? | | ?????### ????????????## ## #?????? | | ?????# ########### #??????? | | ????# #a# l #??????? | | ????# #"#@# * #??????? | | ????## #"#a##### #??????? | | ?????## ### #???# ##??????? | | ??????## #?# #???# ### ##???????? | | ???????### #??# #???## ####?# #########? | | ?????????###??? #???# ????# #? | | ??????????????? ???# #???######### #? | | ??????????????? ???# #????##?????# #? | | ??????????????? ??? #????# #????# #? | | ??????????????? ??## #????# #???# ## | | ??????????????? ???######????# #### ## | | ??????????????? ??????????????# | | ???????????????###??????????????# | | ???????????????????????????????# ####### | | ???????????????????????????? ???????# | | ???????????????????????????# ????????? | | ???????????????????????????####??????????? | | ?????????????????????????????????????????? | | ?????????????????????????????????????????? | | | | | | | | | | | | | +----------------------------------------------------+ Best States ------------- Heat Dissipation 25 Energy Generation 19 Energy Capacity 1810 Matter Stores 300 Matter Capacity 300 Sight Range 16 Terrain Scan Density 10 Armor Coverage 300 Evasion (%) 40 Recoil Reduction 2 Item Schematics ----------------- Huge Storage Unit | -10/Materials | Hacked Robot Schematics ------------------ None Fabricated ------------ Nothing Alien Tech Used ----------------- None Achievements -------------- None Challenges ------------ None Game ------ Seed DynamicServoCoupler Manual? 0 Play Time 00:35:15 Cumulative 397.4 hours Start 2024.11.21 @ 17:47:10 End 2024.11.21 @ 18:25:18 Sessions 1 Manual Loads 0 Difficulty Rogue Special Mode None Game No. 188 Rogue 188 Adventurer 0 Explorer 0 Win Type - Total 13 Types 8/1/4/0/0/0/0/0/0 Lore% 87 Gallery% 90 Achievement% 76 Wizard Run 0 Options --------- Layout 0 ASCII 0 Keyboard 0 Movement Mouse Keybinds 0 Fullscreen 2 Font 12/Smallcaps Map View 83x54 Zoom Use 0% Tactical HUD 1 Map Filters NONE Filters NONE Steam 1 RUN: a5165877-cecb-4b8f-b756-4fe386ea7401